bitfinex-derivatives/quotes_SOLF0:USTF0_20250614
["timestamp","ask_amount","ask_price","bid_price","bid_amount"]
[1749907158238,10.23704548,145.65,145.64,27.02582314]
[1749907158532,10.23704548,145.65,145.64,14.2903146]
[1749907158928,10.23704548,145.65,145.64,27.08082606]
[1749907159134,10.23704548,145.65,145.64,8.53022241]
[1749907159539,17.10014548,145.65,145.63,42.82150454]
[1749907160731,6.8635,145.64,145.63,42.82150454]
[1749907160934,10.23704548,145.65,145.63,42.82150454]
[1749907161533,17.10024548,145.65,145.63,42.82150454]
[1749907161727,10.23704548,145.65,145.63,42.82150454]
[1749907166139,10.23704548,145.65,145.63,49.68510454]
[1749907166337,10.23704548,145.65,145.63,42.82150454]
[1749907166939,10.23704548,145.65,145.64,6.8635]
[1749907171841,10.23704548,145.65,145.63,42.82150454]
[1749907171842,10.23704548,145.65,145.63,49.68520454]
[1749907173542,10.23704548,145.65,145.63,42.82150454]
[1749907173739,10.23704548,145.65,145.63,34.29128213]
[1749907174542,17.10034548,145.65,145.63,34.29128213]
[1749907175244,6.8635,145.64,145.63,34.29128213]
[1749907177539,6.8635,145.64,145.63,0.05128213]
[1749907177741,6.864,145.63,145.61,8.53022241]
[1749907177942,5.1730146,145.64,145.6,42.73022241]
[1749907178242,6.8652,145.61,145.59,8.53022241]
[1749907178446,6.8652,145.61,145.58,8.53022241]
[1749907178739,6.8655,145.6,145.58,0.04747393]
[1749907179936,6.8659,145.59,145.58,0.04747393]
[1749907180133,0.05190131,145.61,145.58,0.04747393]
[1749907180745,6.8659,145.59,145.58,0.04747393]
[1749907187649,6.8678,145.55,145.54,34.22]
[1749907189151,5.1730146,145.55,145.51,34.22]
[1749907190054,5.1730146,145.53,145.51,34.22]
[1749907190254,5.1730146,145.53,145.48,34.22]
[1749907190454,0.04797822,145.52,145.48,34.22]
[1749907191158,0.04797822,145.52,145.48,41.0908]
[1749907191159,6.8698,145.51,145.48,41.0908]
[1749907191853,6.8704,145.5,145.48,34.22]
[1749907192051,5.1730146,145.51,145.48,34.22]
[1749907193362,0.04797822,145.52,145.48,34.22]
[1749907193562,0.04797822,145.52,145.49,6.8703]
[1749907193958,0.04797822,145.52,145.48,34.22]
[1749907194156,0.04797822,145.52,145.48,39.3930146]
[1749907194360,0.04797822,145.52,145.48,34.22]
[1749907194549,0.04797822,145.52,145.5,6.8701]
[1749907194749,0.04797822,145.52,145.48,39.3930146]
[1749907195266,0.04797822,145.52,145.48,34.22]
[1749907195864,0.04797822,145.52,145.49,6.8702]
[1749907196163,0.04797822,145.52,145.48,34.22]
[1749907197161,0.04797822,145.52,145.5,6.8699]
[1749907197759,0.04797822,145.52,145.48,34.22]
[1749907198361,6.91747822,145.52,145.48,41.0907]
[1749907199168,6.8697,145.51,145.48,41.0907]
[1749907200864,6.8704,145.5,145.48,34.22]
[1749907201073,11.48797822,145.52,145.48,34.22]
[1749907201876,6.8706,145.5,145.48,34.22]
[1749907202075,5.1730146,145.51,145.48,34.22]
[1749907203487,6.8701,145.5,145.48,34.22]
[1749907203671,5.1730146,145.51,145.48,34.22]
[1749907203975,6.8701,145.5,145.48,34.22]
[1749907204475,5.1730146,145.51,145.48,34.22]
[1749907204983,6.8706,145.49,145.48,34.22]
[1749907205171,11.48797822,145.52,145.48,34.22]
[1749907205577,6.8704,145.5,145.48,34.22]
[1749907206473,6.8706,145.49,145.48,34.22]
[1749907207275,11.48797822,145.52,145.48,34.22]
[1749907207883,11.48797822,145.52,145.5,6.8699]
[1749907208876,11.48797822,145.52,145.49,6.8703]
[1749907209087,18.35717822,145.52,145.49,6.8703]
[1749907209387,11.48797822,145.52,145.49,6.8703]
[1749907210084,11.48797822,145.52,145.48,43.4335]
[1749907210276,6.8701,145.51,145.48,34.22]
[1749907210788,6.8701,145.51,145.48,41.0911]
[1749907211181,18.35727822,145.52,145.49,6.8706]
[1749907211579,11.48797822,145.52,145.48,34.22]
[1749907212078,6.8699,145.51,145.48,41.0909]
[1749907212489,11.48797822,145.52,145.48,34.22]
[1749907213790,18.35737822,145.52,145.49,6.8705]
[1749907214292,11.48797822,145.52,145.49,6.8705]
[1749907214989,11.48797822,145.52,145.51,6.8697]
[1749907218187,11.48797822,145.52,145.51,12.0427146]
[1749907218389,103.7048846,145.59,145.54,6.8678]
[1749907218586,103.7048846,145.59,145.54,41.0878]
[1749907219295,6.91753631,145.58,145.55,6.91567822]
[1749907219593,0.05073631,145.58,145.55,0.04797822]
[1749907219795,0.05073631,145.58,145.55,6.91557822]
[1749907220290,0.05073631,145.58,145.56,6.8672]
[1749907222493,0.05073631,145.58,145.55,6.91557822]
[1749907222989,0.05073631,145.58,145.57,6.8668]
[1749907223998,0.05073631,145.58,145.55,5.22099282]
[1749907224690,0.05073631,145.58,145.55,12.08839282]
[1749907225394,0.05073631,145.58,145.55,0.04797822]
[1749907225997,6.8668,145.57,145.55,0.04797822]
[1749907227794,6.91723631,145.58,145.55,0.04797822]
[1749907228101,0.05073631,145.58,145.55,0.04797822]
[1749907228295,0.05073631,145.58,145.55,6.91537822]
[1749907228602,0.05073631,145.58,145.55,0.04797822]
[1749907229002,0.05073631,145.58,145.57,6.8668]
[1749907229204,0.05073631,145.58,145.55,0.04797822]
[1749907229897,0.05073631,145.58,145.56,6.867]
[1749907230097,0.05073631,145.58,145.55,0.04797822]
[1749907230495,0.05073631,145.58,145.56,6.867]
[1749907232602,0.05073631,145.58,145.57,6.8668]
[1749907239705,0.05073631,145.58,145.55,0.04797822]
[1749907239907,0.05073631,145.58,145.55,34.24797822]
[1749907240099,2.39893631,145.58,145.55,34.24797822]
[1749907240998,7.57195091,145.58,145.55,34.24797822]
[1749907241504,6.8673,145.56,145.55,34.24797822]
[1749907255412,6.8671,145.57,145.55,34.24797822]
[1749907256313,7.79073631,145.58,145.55,39.42099282]
[1749907256519,7.79073631,145.58,145.55,47.95121523]
[1749907256716,7.79073631,145.58,145.57,6.8668]
[1749907257422,7.79073631,145.58,145.57,15.39702241]
[1749907261919,7.79073631,145.58,145.57,20.57003701]
[1749907262331,7.79073631,145.58,145.57,12.0398146]
[1749907262531,11.4774,145.65,145.61,6.8648]
[1749907262833,4.6141,145.65,145.62,34.2]
[1749907263625,4.65950243,145.65,145.62,34.24447353]
[1749907263923,6.8636,145.64,145.62,34.24447353]
[1749907265027,11.52270243,145.65,145.62,34.24447353]
[1749907265530,4.65950243,145.65,145.62,34.24447353]
[1749907266732,6.8637,145.64,145.62,34.24447353]
[1749907267833,0.04540243,145.65,145.62,34.24447353]
[1749907268624,0.04540243,145.65,145.64,6.8635]
[1749907277927,0.04540243,145.65,145.63,6.8638]
[1749907282240,0.04540243,145.65,145.62,41.10877353]
[1749907282546,0.04540243,145.65,145.62,34.24447353]
[1749907283039,6.8638,145.64,145.62,34.24447353]
[1749907283941,6.864,145.63,145.62,34.24447353]
[1749907284943,6.8637,145.64,145.62,34.24447353]
[1749907285741,6.8637,145.64,145.62,41.10887353]
[1749907285941,0.04540243,145.65,145.62,41.10887353]
[1749907285942,0.04540243,145.65,145.62,34.24447353]
[1749907287338,0.04540243,145.65,145.63,6.8636]
[1749907288943,0.04540243,145.65,145.62,34.24447353]
[1749907289336,0.04540243,145.65,145.63,6.8637]
[1749907289534,0.04540243,145.65,145.62,34.24447353]
[1749907289847,4.94982137,145.64,145.62,41.10877353]
[1749907290045,6.90860243,145.65,145.62,41.10877353]
[1749907290543,6.90860243,145.65,145.63,6.864]
[1749907292651,6.8636,145.64,145.62,41.10887353]
[1749907293244,6.864,145.63,145.62,34.24447353]
[1749907293648,10.11487765,145.63,145.59,34.16]
[1749907293855,6.8664,145.58,145.57,34.16]
[1749907294150,5.1730146,145.61,145.57,34.16]
[1749907294354,6.8661,145.59,145.57,34.16]
[1749907294744,6.90977995,145.59,145.57,34.20717112]
[1749907295255,0.04367995,145.59,145.57,41.07387112]
[1749907296157,6.90967995,145.59,145.57,34.20717112]
[1749907296547,0.04367995,145.59,145.57,34.20717112]
[1749907296747,6.8664,145.58,145.57,34.20717112]
[1749907297053,4.94288099,145.58,145.54,34.16]
[1749907297246,0.04367995,145.59,145.54,34.16]
[1749907297451,10.11586419,145.58,145.54,34.16]
[1749907297749,5.1730146,145.58,145.54,34.16]
[1749907298250,4.94256717,145.57,145.54,34.16]
[1749907298554,4.94256126,145.56,145.54,34.16]
[1749907298745,4.94256126,145.55,145.54,34.16]
[1749907299153,4.92468459,145.55,145.54,34.16]
[1749907299749,11.79248459,145.55,145.54,34.16]
[1749907300258,4.92468459,145.55,145.54,34.16]
[1749907300655,4.92468481,145.55,145.54,34.16]
[1749907300854,6.8678,145.55,145.54,34.16]
[1749907301446,11.79243609,145.55,145.54,34.16]
[1749907301647,6.8678,145.55,145.54,34.16]
[1749907301846,11.79243609,145.55,145.54,34.16]
[1749907302046,6.8678,145.55,145.54,34.16]
[1749907302247,11.79240062,145.55,145.54,34.16]
[1749907302447,11.79239936,145.55,145.54,34.16]
[1749907302663,6.8678,145.55,145.54,34.16]
[1749907304551,5.21784366,145.56,145.49,5.1730146]
[1749907304864,6.869,145.53,145.51,34.18]
[1749907306664,6.8692,145.52,145.51,34.18]
[1749907308566,7.43417787,145.54,145.48,34.18]
[1749907309668,6.8702,145.5,145.48,34.18]
[1749907309867,6.92240652,145.5,145.48,34.18]
[1749907310066,0.05220652,145.5,145.48,41.051]
[1749907310264,0.05220652,145.5,145.48,34.18]
[1749907310968,0.05220652,145.5,145.49,6.8706]
[1749907313864,0.05220652,145.5,145.48,41.0509]
[1749907316070,0.05220652,145.5,145.49,6.8706]
[1749907318974,0.05220652,145.5,145.48,41.0508]
[1749907321074,0.05220652,145.5,145.49,6.8706]
[1749907323978,0.05220652,145.5,145.49,12.0436146]
[1749907324176,11.46,145.51,145.5,6.8701]
[1749907324476,11.46,145.51,145.5,139.4301]
[1749907327571,0.04803456,145.52,145.5,139.4301]
[1749907327572,0.04803456,145.52,145.51,6.8697]
[1749907327880,0.04803456,145.52,145.51,12.0427146]
[1749907330574,9.9248146,145.6,145.51,12.0427146]
[1749907330575,4.7518,145.6,145.56,6.8671]
[1749907330775,5.1730146,145.62,145.56,34.18]
[1749907331177,6.8657,145.6,145.56,34.18]
[1749907331581,0.05152915,145.59,145.57,6.91767274]
[1749907331971,0.05152915,145.59,145.57,0.05087274]
[1749907332179,0.05152915,145.59,145.58,6.8664]
[1749907332677,0.05152915,145.59,145.57,6.91747274]
[1749907332974,0.05152915,145.59,145.57,0.05087274]
[1749907333479,0.05152915,145.59,145.58,6.8664]
[1749907333680,0.05152915,145.59,145.57,0.05087274]
[1749907334082,0.05152915,145.59,145.57,6.91747274]
[1749907334475,0.05152915,145.59,145.57,0.05087274]
[1749907334882,0.05152915,145.59,145.58,6.8664]
[1749907335381,0.05152915,145.59,145.57,6.91757274]
[1749907335782,0.05152915,145.59,145.57,0.05087274]
[1749907335982,0.05152915,145.59,145.58,6.8664]
[1749907336380,0.05152915,145.59,145.57,0.05087274]
[1749907336777,6.91772915,145.59,145.57,0.05087274]
[1749907337677,6.91772915,145.59,145.57,6.91767274]
[1749907338280,0.05152915,145.59,145.57,6.91767274]
[1749907338682,0.05152915,145.59,145.58,6.8664]
[1749907344080,0.05152915,145.59,145.57,0.05087274]
[1749907344477,0.05152915,145.59,145.57,6.91747274]
[1749907344875,0.05152915,145.59,145.57,0.05087274]
[1749907345482,6.8664,145.58,145.57,0.05087274]
[1749907345883,4.67382915,145.59,145.57,0.05087274]
[1749907346084,4.67382915,145.59,145.57,6.91747274]
[1749907346583,11.53982915,145.59,145.57,0.05087274]
[1749907347282,4.67382915,145.59,145.57,6.91767274]
[1749907348287,4.67382915,145.59,145.57,0.05087274]
[1749907348690,0.05152915,145.59,145.57,0.05087274]
[1749907348889,0.05152915,145.59,145.58,6.8664]
[1749907349386,0.05152915,145.59,145.57,0.05087274]
[1749907349589,0.05152915,145.59,145.58,6.8664]
[1749907352596,0.05152915,145.59,145.57,6.91767274]
[1749907354293,0.05152915,145.59,145.58,6.8664]
[1749907357197,0.05152915,145.59,145.58,12.0394146]
[1749907357497,0.05152915,145.59,145.58,6.8664]
[1749907362296,0.05152915,145.59,145.58,15.39593529]
[1749907362697,0.05152915,145.59,145.58,6.8664]
[1749907363104,0.05152915,145.59,145.58,15.39593529]
[1749907369507,0.05152915,145.59,145.58,6.8664]
[1749907369701,0.05152915,145.59,145.58,15.40417497]
[1749907370306,0.05152915,145.59,145.58,6.8664]
[1749907377110,2.915e-05,145.59,145.58,6.8664]
[1749907377313,8.47,145.61,145.6,6.8654]
[1749907377499,4.569,145.68,145.6,39.3330146]
[1749907377704,4.569,145.68,145.63,5.1730146]
[1749907377903,4.569,145.68,145.66,6.8623]
[1749907378414,4.61986305,145.68,145.66,6.91026105]
[1749907379513,4.61986305,145.68,145.66,0.04796105]
[1749907382304,0.05086305,145.68,145.66,0.04796105]
[1749907382806,0.05086305,145.68,145.67,6.8621]
[1749907383108,0.05086305,145.68,145.66,6.91036105]
[1749907383316,0.05086305,145.68,145.66,0.04796105]
[1749907383713,0.05086305,145.68,145.67,6.8621]
[1749907383914,0.05086305,145.68,145.66,0.04796105]
[1749907388516,6.91266305,145.68,145.66,0.04796105]
[1749907388717,0.05086305,145.68,145.66,0.04796105]
[1749907388919,5.22387765,145.68,145.66,0.04796105]
[1749907389119,6.8621,145.67,145.66,0.04796105]
[1749907390114,6.8621,145.67,145.59,8.54528872]
[1749907390115,5.1730146,145.66,145.61,34.12]
[1749907390621,6.8639,145.64,145.61,40.9847]
[1749907391120,6.90813135,145.64,145.61,41.03617314]
[1749907391321,6.90813135,145.64,145.62,6.8644]
[1749907391519,0.04423135,145.64,145.62,6.8644]
[1749907393629,6.90803135,145.64,145.61,41.03627314]
[1749907393819,6.90803135,145.64,145.61,34.17147314]
[1749907393820,0.04423135,145.64,145.61,34.17147314]
[1749907394415,0.04423135,145.64,145.61,41.03627314]
[1749907394927,6.90803135,145.64,145.61,41.03627314]
[1749907395224,0.04423135,145.64,145.61,34.17147314]
[1749907395424,6.8644,145.63,145.61,34.17147314]
[1749907396424,6.8645,145.62,145.61,34.17147314]
[1749907396619,5.21724595,145.64,145.58,34.14]
[1749907396826,6.8657,145.6,145.58,41.0063]
[1749907397426,6.8657,145.6,145.58,34.14]
[1749907397618,6.9165051,145.6,145.58,34.1858188]
[1749907398028,6.8659,145.59,145.58,34.1858188]
[1749907398425,6.8659,145.59,145.55,8.54528872]
[1749907398426,5.2238197,145.6,145.55,34.14]
[1749907400733,6.8672,145.57,145.55,34.14]
[1749907400927,6.91461303,145.57,145.55,34.14]
[1749907401230,0.04741303,145.57,145.52,34.14]
[1749907401421,0.04611881,145.56,145.52,34.14]
[1749907401823,5.21913341,145.56,145.52,34.14]
[1749907402231,6.8686,145.54,145.52,34.14]
[1749907403327,6.8687,145.53,145.52,34.14]
[1749907403835,6.8695,145.52,145.49,34.14]
[1749907404138,6.91772039,145.52,145.49,34.14]
[1749907404836,6.91772039,145.52,145.49,41.0105]
[1749907405435,6.91772039,145.52,145.49,34.14]
[1749907406129,6.8698,145.51,145.49,34.14]
[1749907407236,0.04822039,145.52,145.46,34.14]
[1749907407433,5.1730146,145.5,145.46,34.14]
[1749907408537,6.871,145.49,145.46,34.14]
[1749907408737,6.91497778,145.49,145.46,34.14]
[1749907409438,6.8712,145.48,145.46,34.14]
[1749907409633,0.04397778,145.49,145.46,34.14]
[1749907410733,0.04397778,145.49,145.46,41.012]
[1749907411139,6.91487778,145.49,145.46,41.012]
[1749907411739,6.91487778,145.49,145.47,6.8714]
[1749907411740,0.04397778,145.49,145.47,6.8714]
[1749907411938,0.04397778,145.49,145.47,5.1730146]
[1749907412436,0.04397778,145.49,145.48,6.8711]
[1749907412642,130.74047014,145.56,145.47,9.77129773]
[1749907412939,130.74047014,145.56,145.49,5.1730146]
[1749907413141,130.74047014,145.56,145.5,34.14]
[1749907413533,0.05248669,145.54,145.52,0.04517364]
[1749907414344,6.8688,145.53,145.52,0.04517364]
[1749907415431,12.0418146,145.53,145.52,0.04517364]
[1749907416838,12.0418146,145.53,145.52,7.364e-05]
[1749907418339,0.05248669,145.54,145.52,7.364e-05]
[1749907420848,6.8687,145.53,145.52,7.364e-05]
[1749907421145,12.0417146,145.53,145.52,7.364e-05]
[1749907422451,6.8706,145.49,145.48,34.16]
[1749907429752,0.04610441,145.5,145.44,9.0931]
[1749907429753,6.8719,145.47,145.45,34.16]
[1749907430345,6.872,145.46,145.45,34.16]
[1749907431749,0.05178878,145.47,145.45,34.16]
[1749907432046,0.05178878,145.47,145.46,6.872]
[1749907432850,0.05178878,145.47,145.45,41.0322]
[1749907434641,6.92338878,145.47,145.45,34.16]
[1749907435447,6.92338878,145.47,145.45,41.0324]
[1749907436049,6.92338878,145.47,145.45,34.16]
[1749907437354,5.1730146,145.54,145.46,5.1730146]
[1749907437663,4.72394469,145.53,145.48,5.1730146]
[1749907437954,6.8691,145.53,145.49,34.16]
[1749907438160,4.72394786,145.52,145.49,34.16]
[1749907438346,0.04745594,145.52,145.49,41.07901644]
[1749907439149,0.04745594,145.52,145.49,34.20861644]
[1749907439757,6.8698,145.51,145.49,34.20861644]
[1749907440962,0.04745594,145.52,145.49,34.20861644]
[1749907440963,5.22047054,145.52,145.49,34.20861644]
[1749907441153,4.73006736,145.51,145.49,0.04861644]
[1749907441359,4.73006736,145.5,145.49,0.04861644]
[1749907441545,11.600178,145.5,145.49,0.04861644]
[1749907441751,6.8701,145.5,145.49,0.04861644]
[1749907444758,11.60028353,145.5,145.49,0.04861644]
[1749907444955,6.8701,145.5,145.49,0.04861644]
[1749907447659,0.04745594,145.52,145.49,0.04861644]
[1749907448056,0.04745594,145.52,145.49,5.22163104]
[1749907448256,6.91685594,145.52,145.49,12.09183104]
[1749907448557,0.04745594,145.52,145.49,5.22163104]
[1749907448959,0.04745594,145.52,145.5,6.8701]
[1749907449158,0.04745594,145.52,145.51,34.14]
[1749907450164,0.04745594,145.52,145.51,41.0097]
[1749907451856,0.04745594,145.52,145.51,34.14]
[1749907453264,0.04745594,145.52,145.51,41.0097]
[1749907456366,0.04745594,145.52,145.51,34.14]
[1749907456771,0.04745594,145.52,145.51,41.0097]
[1749907458973,0.04745594,145.52,145.51,34.14]
[1749907459773,6.91665594,145.52,145.51,34.14]
[1749907460968,0.04745594,145.52,145.51,34.14]
[1749907461975,0.04745594,145.52,145.51,41.0097]
[1749907463368,0.04745594,145.52,145.51,34.14]
[1749907463966,6.91665594,145.52,145.51,34.14]
[1749907465665,6.8701,145.5,145.49,0.04861644]
[1749907472172,0.04745594,145.52,145.49,0.04861644]
[1749907472580,0.04745594,145.52,145.49,8.59390516]
[1749907472973,0.04745594,145.52,145.5,6.8701]
[1749907473584,0.04745594,145.52,145.51,6.8697]
[1749907473777,8.7082909,145.61,145.51,13.71830332]
[1749907473778,5.1730146,145.6,145.51,13.71830332]
[1749907473983,5.1730146,145.6,145.52,34.12]
[1749907474178,6.8676,145.56,145.53,6.8684]
[1749907474780,6.8678,145.55,145.53,0.05020533]
[1749907475174,6.8682,145.54,145.53,0.05020533]
[1749907480785,6.868,145.55,145.53,0.05020533]
[1749907481682,6.8682,145.54,145.53,0.05020533]
[1749907486099,0.04655418,145.56,145.53,0.05020533]
[1749907486589,0.04655418,145.56,145.54,5.1730146]
[1749907486992,0.04655418,145.56,145.55,6.8678]
[1749907489902,0.04655418,145.56,145.53,8.59549405]
[1749907490198,0.04655418,145.56,145.53,0.05020533]
[1749907490402,0.04655418,145.56,145.54,34.12]
[1749907491001,6.8678,145.55,145.54,34.12]
[1749907491395,6.91405418,145.56,145.54,34.12]
[1749907491999,6.8678,145.55,145.54,34.12]
[1749907498707,6.8682,145.54,145.53,0.05020533]
[1749907503411,5.1730146,145.55,145.48,34.12]
[1749907503714,5.1730146,145.53,145.48,34.12]
[1749907504416,0.04462954,145.52,145.49,0.05257946]
[1749907505114,6.8701,145.5,145.49,0.05257946]
[1749907508424,0.04462954,145.52,145.49,0.05257946]
[1749907508616,5.1730146,145.51,145.49,0.05257946]
[1749907508823,6.8701,145.5,145.49,0.05257946]
[1749907509014,5.1730146,145.51,145.45,34.12]
[1749907509213,5.1730146,145.48,145.45,34.12]
[1749907509419,5.1730146,145.5,145.45,34.12]
[1749907509814,6.8709,145.49,145.46,6.8719]
[1749907510113,6.92045097,145.49,145.46,6.8719]
[1749907510718,0.04955097,145.49,145.45,34.12]
[1749907510924,0.04955097,145.49,145.45,42.66528872]
[1749907511221,0.04955097,145.49,145.48,6.8711]
[1749907511623,0.04955097,145.49,145.47,6.8714]
[1749907515120,6.92035097,145.49,145.46,12.0449146]
[1749907515524,0.04955097,145.49,145.46,5.1730146]
[1749907516026,0.04955097,145.49,145.47,6.8715]
[1749907516821,0.04955097,145.49,145.48,6.8711]
[1749907517027,129.79431424,145.53,145.47,13.14858872]
[1749907517827,129.79431424,145.53,145.47,4.6033]
[1749907518030,0.05009406,145.51,145.49,0.04361749]
[1749907518219,0.05009406,145.51,145.49,34.16361749]
[1749907518733,6.92009406,145.51,145.49,34.16361749]
[1749907519028,0.05009406,145.51,145.49,34.16361749]
[1749907519238,6.8701,145.5,145.49,34.16361749]
[1749907520633,0.05009406,145.51,145.49,34.16361749]
[1749907521128,0.05009406,145.51,145.5,6.8701]
[1749907521426,7.5730146,145.56,145.49,34.16361749]
[1749907521831,6.8683,145.54,145.51,6.8694]
[1749907522026,6.8683,145.54,145.49,34.16361749]
[1749907522027,7.5730146,145.56,145.49,34.12]
[1749907522238,5.1730146,145.56,145.49,36.4648]
[1749907522435,6.91469481,145.54,145.51,6.91366213]
[1749907526034,0.04629481,145.54,145.51,0.04436213]
[1749907526736,0.04629481,145.54,145.51,2.20826213]
[1749907526939,0.04629481,145.54,145.53,6.8687]
[1749907527138,0.04629481,145.54,145.53,40.9887]
[1749907527832,5.1730146,145.6,145.54,6.8679]
[1749907528537,5.1730146,145.6,145.55,6.8678]
[1749907528732,0.05236524,145.59,145.56,0.04597357]
[1749907530040,6.8666,145.58,145.56,0.04597357]
[1749907530434,0.05236524,145.59,145.56,0.04597357]
[1749907531731,6.8668,145.57,145.56,0.04597357]
[1749907537942,6.8668,145.57,145.56,7.357e-05]
[1749907538144,6.8697,145.51,145.5,34.1]
[1749907539242,6.8701,145.5,145.49,0.04748361]
[1749907542658,6.8699,145.51,145.49,0.04748361]
[1749907542955,0.04824945,145.52,145.49,0.04748361]
[1749907543644,6.8701,145.5,145.49,0.04748361]
[1749907545439,0.04824945,145.52,145.49,0.04748361]
[1749907546647,0.04824945,145.52,145.5,6.8701]
[1749907546855,0.04824945,145.52,145.49,0.04748361]
[1749907547059,0.04824945,145.52,145.5,34.1]
[1749907547448,0.04824945,145.52,145.51,6.8697]
[1749907549358,0.04824945,145.52,145.5,40.97]
[1749907550059,6.91754945,145.52,145.5,34.1]
[1749907552362,6.91754945,145.52,145.5,40.9701]
[1749907552860,6.91754945,145.52,145.5,34.1]
[1749907556862,6.91754945,145.52,145.5,40.9701]
[1749907557054,0.04824945,145.52,145.5,40.9701]
[1749907558369,6.91744945,145.52,145.5,34.1]
[1749907560174,6.91744945,145.52,145.5,40.9701]
[1749907561377,0.04824945,145.52,145.5,40.9701]
[1749907562176,0.04824945,145.52,145.5,34.1]
[1749907562972,6.91774945,145.52,145.5,34.1]
[1749907563278,0.04824945,145.52,145.5,34.1]
[1749907563578,0.04824945,145.52,145.49,0.04748361]
[1749907563579,6.8701,145.5,145.49,0.04748361]
[1749907564980,5.22126405,145.52,145.49,0.04748361]
[1749907564981,6.8699,145.51,145.49,0.04748361]
[1749907565182,5.22126405,145.52,145.49,0.04748361]
[1749907565578,6.8701,145.5,145.49,0.04748361]
[1749907569288,12.0431146,145.5,145.49,0.04748361]
[1749907571585,6.8701,145.5,145.49,0.04748361]
[1749907575089,19.3701,145.5,145.49,0.04748361]
[1749907583097,12.5,145.5,145.49,0.04748361]
[1749907584196,12.5,145.5,145.49,6.91808361]
[1749907584497,0.04824945,145.52,145.49,0.04748361]
[1749907585704,0.04824945,145.52,145.51,6.8697]
[1749907590017,6.8697,145.51,145.49,0.04748361]
[1749907592110,6.91764945,145.52,145.49,6.91798361]
[1749907593403,6.91764945,145.52,145.5,6.8701]
[1749907594306,6.91764945,145.52,145.49,6.91788361]
[1749907595115,6.8699,145.51,145.49,0.04748361]
[1749907595414,0.04824945,145.52,145.49,0.04748361]
[1749907595807,6.8697,145.51,145.49,0.04748361]
[1749907598808,6.8701,145.5,145.49,0.04748361]
[1749907605202,5.22126405,145.52,145.49,0.04748361]
[1749907605406,0.04824945,145.52,145.49,0.04748361]
[1749907606012,6.91754945,145.52,145.5,6.8698]
[1749907606812,0.04824945,145.52,145.51,6.8697]
[1749907612117,2.214,145.58,145.54,6.8679]
[1749907612319,2.214,145.58,145.54,40.9479]
[1749907612519,2.214,145.58,145.54,34.08]
[1749907612718,5.1730146,145.6,145.54,34.08]
[1749907613214,0.046395,145.58,145.56,0.04781718]
[1749907613717,6.913095,145.58,145.56,0.04781718]
[1749907614311,0.046395,145.58,145.56,0.04781718]
[1749907615620,0.046395,145.58,145.57,6.8668]
[1749907616920,5.1730146,145.63,145.58,6.8661]
[1749907617119,5.1730146,145.63,145.58,40.9461]
[1749907617322,6.8651,145.61,145.58,40.9461]
[1749907618024,6.91329968,145.61,145.58,40.99144975]
[1749907618616,0.04819968,145.61,145.58,34.12534975]
[1749907619417,0.04819968,145.61,145.59,6.8656]
[1749907619619,0.04819968,145.61,145.58,34.12534975]
[1749907619813,0.04819968,145.61,145.58,39.29836435]
[1749907620011,0.04819968,145.61,145.59,6.8655]
[1749907622326,2.3441,145.66,145.6,5.1730146]
[1749907622725,8.78,145.65,145.6,5.1730146]
[1749907623525,0.04851105,145.64,145.61,0.04820599]
[1749907623732,0.04851105,145.64,145.62,40.9242]
[1749907625532,8.78,145.65,145.62,39.2330146]
[1749907625827,8.78,145.65,145.64,5.1730146]
[1749907626021,8.78,145.65,145.64,12.0365146]
[1749907627330,8.78,145.65,145.64,5.1730146]
[1749907627527,8.78,145.65,145.62,39.2330146]
[1749907627732,8.78,145.65,145.61,0.04820599]
[1749907627922,8.78,145.65,145.62,34.04]
[1749907628121,5.1730146,145.64,145.62,30.4396]
[1749907628325,6.8645,145.62,145.61,0.04820599]
[1749907629520,6.8654,145.6,145.59,34.04]
[1749907630444,5.1730146,145.6,145.56,34.04]
[1749907630628,0.04751326,145.59,145.57,0.05049914]
[1749907630934,6.91371326,145.59,145.57,0.05049914]
[1749907631530,0.04751326,145.59,145.57,0.05049914]
[1749907633533,6.91351326,145.59,145.57,0.05049914]
[1749907634826,0.04751326,145.59,145.57,0.05049914]
[1749907636638,0.04751326,145.59,145.57,6.91709914]
[1749907637841,0.04751326,145.59,145.57,0.05049914]